Workbook

Sheet Fig. 1a
A1: Type | B1: Number of NPs
A2: Botanical NPs | B2: 152841
A3: Zoological NPs | B3: 20267
A4: Bacterial NPs | B4: 21220
A5: Fungi NPs | B5: 32737

Sheet Fig. 1b
A1: Identifier | B1: Botanical NPs | C1: Zoological NPs | D1: Bacterial NPs | E1: Fungi NPs
A2: NPBS000001 | B2: 1 | C2: 0 | D2: 0 | E2: 0
A3: NPBS000002 | B3: 1 | C3: 0 | D3: 0 | E3: 0
A4: NPBS000003 | B4: 1 | C4: 0 | D4: 0 | E4: 0
A5: NPBS000004 | B5: 1 | C5: 1 | D5: 0 | E5: 0
A6: NPBS000005 | B6: 1 | C6: 0 | D6: 0 | E6: 0
A7: NPBS000006 | B7: 1 | C7: 0 | D7: 0 | E7: 0
A8: NPBS000007 | B8: 1 | C8: 0 | D8: 0 | E8: 0
A9: NPBS000008 | B9: 1 | C9: 0 | D9: 0 | E9: 0
A10: NPBS000009 | B10: 1 | C10: 0 | D10: 0 | E10: 0
A11: NPBS000010 | B11: 0 | C11: 0 | D11: 0 | E11: 1
A12: NPBS000011 | B12: 1 | C12: 0 | D12: 0 | E12: 0
A13: NPBS000012 | B13: 1 | C13: 0 | D13: 0 | E13: 0
A14: NPBS000013 | B14: 1 | C14: 0 | D14: 0 | E14: 0
A15: NPBS000014 | B15: 1 | C15: 0 | D15: 0 | E15: 0
A16: NPBS000015 | B16: 1 | C16: 0 | D16: 0 | E16: 0
A17: NPBS000016 | B17: 1 | C17: 0 | D17: 0 | E17: 0
A18: NPBS000017 | B18: 1 | C18: 0 | D18: 0 | E18: 0
A19: NPBS000018 | B19: 1 | C19: 0 | D19: 0 | E19: 0
A20: NPBS000019 | B20: 1 | C20: 0 | D20: 0 | E20: 0
A21: NPBS000020 | B21: 0 | C21: 0 | D21: 1 | E21: 0
A22: NPBS000021 | B22: 1 | C22: 1 | D22: 0 | E22: 0
A23: NPBS000022 | B23: 1 | C23: 0 | D23: 0 | E23: 0
A24: NPBS000023 | B24: 1 | C24: 0 | D24: 0 | E24: 0
A25: NPBS000024 | B25: 1 | C25: 0 | D25: 0 | E25: 0
A26: NPBS000025 | B26: 1 | C26: 0 | D26: 0 | E26: 0
A27: NPBS000026 | B27: 1 | C27: 0 | D27: 0 | E27: 0
A28: NPBS000027 | B28: 1 | C28: 0 | D28: 0 | E28: 0
A29: NPBS000028 | B29: 1 | C29: 0 | D29: 0 | E29: 0
A30: NPBS000029 | B30: 1 | C30: 0 | D30: 0 | E30: 0
A31: NPBS000030 | B31: 1 | C31: 0 | D31: 0 | E31: 0
A32: NPBS000031 | B32: 1 | C32: 0 | D32: 0 | E32: 0
A33: NPBS000032 | B33: 1 | C33: 0 | D33: 0 | E33: 0
A34: NPBS000033 | B34: 1 | C34: 0 | D34: 0 | E34: 0
A35: NPBS000034 | B35: 1 | C35: 0 | D35: 0 | E35: 1
A36: NPBS000035 | B36: 0 | C36: 0 | D36: 0 | E36: 1
A37: NPBS000036 | B37: 1 | C37: 0 | D37: 0 | E37: 0
A38: NPBS000037 | B38: 1 | C38: 0 | D38: 0 | E38: 0
A39: NPBS000038 | B39: 1 | C39: 0 | D39: 0 | E39: 0
A40: NPBS000039 | B40: 1 | C40: 0 | D40: 0 | E40: 0
A41: NPBS000040 | B41: 1 | C41: 0 | D41: 0 | E41: 0
A42: NPBS000041 | B42: 1 | C42: 0 | D42: 0 | E42: 0
A43: NPBS000042 | B43: 1 | C43: 0 | D43: 0 | E43: 0
A44: NPBS000043 | B44: 1 | C44: 0 | D44: 0 | E44: 0
A45: NPBS000044 | B45: 1 | C45: 0 | D45: 0 | E45: 0
A46: NPBS000045 | B46: 1 | C46: 0 | D46: 0 | E46: 0
A47: NPBS000046 | B47: 1 | C47: 0 | D47: 0 | E47: 0
A48: NPBS000047 | B48: 1 | C48: 1 | D48: 0 | E48: 0
A49: NPBS000048 | B49: 1 | C49: 0 | D49: 0 | E49: 0
A50: NPBS000049 | B50: 1 | C50: 0 | D50: 0 | E50: 0
A51: NPBS000050 | B51: 1 | C51: 0 | D51: 0 | E51: 0
A52: NPBS000051 | B52: 1 | C52: 0 | D52: 0 | E52: 0
A53: NPBS000052 | B53: 1 | C53: 0 | D53: 0 | E53: 0
A54: NPBS000053 | B54: 1 | C54: 0 | D54: 0 | E54: 0
A55: NPBS000054 | B55: 1 | C55: 1 | D55: 0 | E55: 0
A56: NPBS000055 | B56: 1 | C56: 0 | D56: 0 | E56: 0
A57: NPBS000056 | B57: 1 | C57: 0 | D57: 0 | E57: 0
A58: NPBS000057 | B58: 1 | C58: 0 | D58: 0 | E58: 0
A59: NPBS000058 | B59: 1 | C59: 1 | D59: 0 | E59: 0
A60: NPBS000059 | B60: 1 | C60: 0 | D60: 0 | E60: 0
A61: NPBS000060 | B61: 1 | C61: 0 | D61: 1 | E61: 0
A62: NPBS000061 | B62: 1 | C62: 0 | D62: 0 | E62: 1
A63: NPBS000062 | B63: 1 | C63: 0 | D63: 0 | E63: 0
A64: NPBS000063 | B64: 1 | C64: 0 | D64: 0 | E64: 0
A65: NPBS000064 | B65: 1 | C65: 0 | D65: 0 | E65: 0
A66: NPBS000065 | B66: 1 | C66: 1 | D66: 0 | E66: 1
A67: NPBS000066 | B67: 1 | C67: 0 | D67: 0 | E67: 0
A68: NPBS000067 | B68: 1 | C68: 0 | D68: 0 | E68: 0
A69: NPBS000068 | B69: 0 | C69: 0 | D69: 0 | E69: 1
A70: NPBS000069 | B70: 1 | C70: 0 | D70: 0 | E70: 0
A71: NPBS000070 | B71: 1 | C71: 0 | D71: 0 | E71: 1
A72: NPBS000071 | B72: 1 | C72: 0 | D72: 0 | E72: 0
A73: NPBS000072 | B73: 1 | C73: 0 | D73: 0 | E73: 0
A74: NPBS000073 | B74: 1 | C74: 0 | D74: 0 | E74: 0
A75: NPBS000074 | B75: 1 | C75: 0 | D75: 0 | E75: 0
A76: NPBS000075 | B76: 1 | C76: 0 | D76: 0 | E76: 0
A77: NPBS000076 | B77: 1 | C77: 0 | D77: 0 | E77: 0
A78: NPBS000077 | B78: 1 | C78: 0 | D78: 0 | E78: 0
A79: NPBS000078 | B79: 1 | C79: 0 | D79: 0 | E79: 0
A80: NPBS000079 | B80: 1 | C80: 0 | D80: 0 | E80: 0
A81: NPBS000080 | B81: 1 | C81: 0 | D81: 0 | E81: 0
A82: NPBS000081 | B82: 1 | C82: 0 | D82: 0 | E82: 0
A83: NPBS000082 | B83: 0 | C83: 0 | D83: 0 | E83: 1
A84: NPBS000083 | B84: 0 | C84: 0 | D84: 0 | E84: 1
A85: NPBS000084 | B85: 1 | C85: 0 | D85: 0 | E85: 0
A86: NPBS000085 | B86: 1 | C86: 0 | D86: 0 | E86: 0
A87: NPBS000086 | B87: 1 | C87: 0 | D87: 0 | E87: 0
A88: NPBS000087 | B88: 1 | C88: 0 | D88: 0 | E88: 0
A89: NPBS000088 | B89: 1 | C89: 0 | D89: 0 | E89: 0
A90: NPBS000089 | B90: 1 | C90: 0 | D90: 0 | E90: 0
A91: NPBS000090 | B91: 1 | C91: 0 | D91: 0 | E91: 0
A92: NPBS000091 | B92: 1 | C92: 0 | D92: 0 | E92: 0
A93: NPBS000092 | B93: 1 | C93: 0 | D93: 0 | E93: 0
A94: NPBS000093 | B94: 1 | C94: 0 | D94: 0 | E94: 0
A95: NPBS000094 | B95: 1 | C95: 0 | D95: 0 | E95: 0
A96: NPBS000095 | B96: 1 | C96: 0 | D96: 0 | E96: 1
A97: NPBS000096 | B97: 1 | C97: 0 | D97: 0 | E97: 0
A98: NPBS000097 | B98: 1 | C98: 0 | D98: 0 | E98: 0
A99: NPBS000098 | B99: 1 | C99: 0 | D99: 0 | E99: 0
A100: NPBS000099 | B100: 1 | C100: 0 | D100: 0 | E100: 0
A101: NPBS000100 | B101: 1 | C101: 0 | D101: 0 | E101: 0
A102: NPBS000101 | B102: 1 | C102: 0 | D102: 0 | E102: 0
A103: NPBS000102 | B103: 1 | C103: 0 | D103: 0 | E103: 0
A104: NPBS000103 | B104: 1 | C104: 0 | D104: 0 | E104: 0
A105: NPBS000104 | B105: 1 | C105: 0 | D105: 0 | E105: 0
A106: NPBS000105 | B106: 1 | C106: 0 | D106: 0 | E106: 0
A107: NPBS000106 | B107: 1 | C107: 1 | D107: 0 | E107: 0
A108: NPBS000107 | B108: 1 | C108: 1 | D108: 1 | E108: 0
A109: NPBS000108 | B109: 1 | C109: 0 | D109: 0 | E109: 0
A110: NPBS000109 | B110: 1 | C110: 0 | D110: 0 | E110: 0
A111: NPBS000110 | B111: 1 | C111: 0 | D111: 0 | E111: 0
A112: NPBS000111 | B112: 1 | C112: 0 | D112: 0 | E112: 0
A113: NPBS000112 | B113: 1 | C113: 0 | D113: 0 | E113: 0
A114: NPBS000113 | B114: 1 | C114: 0 | D114: 0 | E114: 0
A115: NPBS000114 | B115: 0 | C115: 0 | D115: 0 | E115: 1
A116: NPBS000115 | B116: 1 | C116: 0 | D116: 0 | E116: 0
A117: NPBS000116 | B117: 1 | C117: 0 | D117: 0 | E117: 0
A118: NPBS000117 | B118: 1 | C118: 0 | D118: 1 | E118: 0
A119: NPBS000118 | B119: 1 | C119: 0 | D119: 0 | E119: 0
A120: NPBS000119 | B120: 0 | C120: 0 | D120: 0 | E120: 1
A121: NPBS000120 | B121: 1 | C121: 0 | D121: 0 | E121: 0
A122: NPBS000121 | B122: 1 | C122: 0 | D122: 0 | E122: 0
A123: NPBS000122 | B123: 1 | C123: 0 | D123: 0 | E123: 0
A124: NPBS000123 | B124: 0 | C124: 0 | D124: 0 | E124: 1
A125: NPBS000124 | B125: 1 | C125: 0 | D125: 0 | E125: 0
A126: NPBS000125 | B126: 1 | C126: 0 | D126: 0 | E126: 0
A127: NPBS000126 | B127: 1 | C127: 0 | D127: 0 | E127: 0
A128: NPBS000127 | B128: 1 | C128: 0 | D128: 0 | E128: 0
A129: NPBS000128 | B129: 1 | C129: 0 | D129: 1 | E129: 0
A130: NPBS000129 | B130: 1 | C130: 0 | D130: 0 | E130: 0
A131: NPBS000130 | B131: 1 | C131: 1 | D131: 0 | E131: 0
A132: NPBS000131 | B132: 1 | C132: 0 | D132: 0 | E132: 1
A133: NPBS000132 | B133: 1 | C133: 0 | D133: 0 | E133: 0
A134: NPBS000133 | B134: 1 | C134: 0 | D134: 0 | E134: 0
A135: NPBS000134 | B135: 1 | C135: 0 | D135: 0 | E135: 0
A136: NPBS000135 | B136: 1 | C136: 0 | D136: 1 | E136: 0
A137: NPBS000136 | B137: 1 | C137: 0 | D137: 0 | E137: 0
A138: NPBS000137 | B138: 1 | C138: 0 | D138: 0 | E138: 0
A139: NPBS000138 | B139: 1 | C139: 0 | D139: 0 | E139: 0
A140: NPBS000139 | B140: 1 | C140: 0 | D140: 0 | E140: 0
A141: NPBS000140 | B141: 1 | C141: 0 | D141: 0 | E141: 0
A142: NPBS000141 | B142: 1 | C142: 0 | D142: 0 | E142: 0
A143: NPBS000142 | B143: 1 | C143: 0 | D143: 0 | E143: 0
A144: NPBS000143 | B144: 1 | C144: 1 | D144: 0 | E144: 1
A145: NPBS000144 | B145: 1 | C145: 0 | D145: 0 | E145: 0
A146: NPBS000145 | B146: 1 | C146: 0 | D146: 0 | E146: 0
A147: NPBS000146 | B147: 1 | C147: 0 | D147: 0 | E147: 0
A148: NPBS000147 | B148: 1 | C148: 0 | D148: 0 | E148: 1
A149: NPBS000148 | B149: 0 | C149: 0 | D149: 0 | E149: 1
A150: NPBS000149 | B150: 1 | C150: 0 | D150: 0 | E150: 0
A151: NPBS000150 | B151: 1 | C151: 0 | D151: 0 | E151: 0
A152: NPBS000151 | B152: 1 | C152: 0 | D152: 0 | E152: 0
A153: NPBS000152 | B153: 1 | C153: 0 | D153: 0 | E153: 0
A154: NPBS000153 | B154: 1 | C154: 0 | D154: 0 | E154: 1
A155: NPBS000154 | B155: 1 | C155: 0 | D155: 0 | E155: 0
A156: NPBS000155 | B156: 1 | C156: 0 | D156: 0 | E156: 1
A157: NPBS000156 | B157: 1 | C157: 0 | D157: 0 | E157: 0
A158: NPBS000157 | B158: 1 | C158: 0 | D158: 0 | E158: 0
A159: NPBS000158 | B159: 1 | C159: 0 | D159: 0 | E159: 0
A160: NPBS000159 | B160: 0 | C160: 0 | D160: 0 | E160: 1
A161: NPBS000160 | B161: 1 | C161: 0 | D161: 0 | E161: 0
A162: NPBS000161 | B162: 1 | C162: 0 | D162: 0 | E162: 0
A163: NPBS000162 | B163: 0 | C163: 0 | D163: 0 | E163: 1
A164: NPBS000163 | B164: 1 | C164: 0 | D164: 0 | E164: 0
A165: NPBS000164 | B165: 1 | C165: 0 | D165: 0 | E165: 0
A166: NPBS000165 | B166: 1 | C166: 0 | D166: 0 | E166: 0
A167: NPBS000166 | B167: 0 | C167: 0 | D167: 0 | E167: 1
A168: NPBS000167 | B168: 1 | C168: 0 | D168: 0 | E168: 0
A169: NPBS000168 | B169: 0 | C169: 0 | D169: 0 | E169: 1
A170: NPBS000169 | B170: 1 | C170: 0 | D170: 0 | E170: 0
A171: NPBS000170 | B171: 1 | C171: 1 | D171: 0 | E171: 0
A172: NPBS000171 | B172: 1 | C172: 0 | D172: 0 | E172: 0
A173: NPBS000172 | B173: 1 | C173: 0 | D173: 0 | E173: 0
A174: NPBS000173 | B174: 1 | C174: 0 | D174: 0 | E174: 0
A175: NPBS000174 | B175: 1 | C175: 0 | D175: 0 | E175: 0
A176: NPBS000175 | B176: 1 | C176: 0 | D176: 0 | E176: 0
A177: NPBS000176 | B177: 1 | C177: 0 | D177: 0 | E177: 0
A178: NPBS000177 | B178: 1 | C178: 0 | D178: 0 | E178: 0
A179: NPBS000178 | B179: 1 | C179: 1 | D179: 0 | E179: 0
A180: NPBS000179 | B180: 1 | C180: 0 | D180: 0 | E180: 0
A181: NPBS000180 | B181: 1 | C181: 0 | D181: 1 | E181: 0
A182: NPBS000181 | B182: 1 | C182: 0 | D182: 0 | E182: 0
A183: NPBS000182 | B183: 1 | C183: 0 | D183: 0 | E183: 0
A184: NPBS000183 | B184: 1 | C184: 0 | D184: 0 | E184: 0
A185: NPBS000184 | B185: 0 | C185: 0 | D185: 0 | E185: 1
A186: NPBS000185 | B186: 1 | C186: 0 | D186: 0 | E186: 0
A187: NPBS000186 | B187: 1 | C187: 1 | D187: 0 | E187: 0
A188: NPBS000187 | B188: 1 | C188: 1 | D188: 0 | E188: 0
A189: NPBS000188 | B189: 1 | C189: 0 | D189: 0 | E189: 0
A190: NPBS000189 | B190: 1 | C190: 0 | D190: 0 | E190: 0
A191: NPBS000190 | B191: 1 | C191: 0 | D191: 0 | E191: 0
A192: NPBS000191 | B192: 1 | C192: 0 | D192: 0 | E192: 0
A193: NPBS000192 | B193: 1 | C193: 0 | D193: 0 | E193: 0
A194: NPBS000193 | B194: 1 | C194: 1 | D194: 0 | E194: 0
A195: NPBS000194 | B195: 1 | C195: 0 | D195: 0 | E195: 1
A196: NPBS000195 | B196: 1 | C196: 0 | D196: 0 | E196: 0
A197: NPBS000196 | B197: 1 | C197: 0 | D197: 0 | E197: 0
A198: NPBS000197 | B198: 1 | C198: 0 | D198: 0 | E198: 0
A199: NPBS000198 | B199: 1 | C199: 0 | D199: 0 | E199: 0
A200: NPBS000199 | B200: 1 | C200: 0 | D200: 0 | E200: 0
... 4300 more rows

Sheet Fig. 1c
A1: Type | B1: Marine | C1: TCMs | D1: Bioactivities | E1: QED > 0.5 | F1: SA Score> 5
A2: Botanical NPs | B2: =13185/152841 -> 9% | C2: =80408/152841 -> 53% | D2: =6390/152841 -> 4% | E2: =61283/152841 -> 40% | F2: =42985/152841 -> 28%
A3: Zoological NPs | B3: =15611/20267 -> 77% | C3: =4501/20267 -> 22% | D3: =1267/20267 -> 6% | E3: =6583/20267 -> 32% | F3: =6968/20267 -> 34%
A4: Bacterial NPs | B4: =2316/21220 -> 11% | C4: =1008/21220 -> 5% | D4: =3650/21220 -> 17% | E4: =4937/21220 -> 23% | F4: =9787/21220 -> 46%
A5: Fungi NPs | B5: =4822/32737 -> 15% | C5: =4914/32737 -> 15% | D5: =4318/32737 -> 13% | E5: =16253/32737 -> 50% | F5: =10489/32737 -> 32%
